fUSD/lending_fUSD_20260615
["ID","MTS","AMOUNT","RATE_DAILY","PERIOD"]
[425087143,1781477441000,-570.32,0.00014899,2]
[425087144,1781477441000,-570.32,0.00014899,2]
[425087137,1781477441000,-500.0,0.00014899,2]
[425087139,1781477441000,-500.0,0.00014899,2]
[425087141,1781477441000,-500.0,0.00014899,2]
[425087142,1781477441000,-500.0,0.00014899,2]
[425087145,1781477441000,-570.32,0.00014899,2]
[425087087,1781477441000,-500.0,0.00014499,2]
[425087135,1781477441000,-1049.9466096,0.00014899,5]
[425087120,1781477441000,-825.37424,0.0001485,2]
[425087089,1781477441000,-1800.0,0.000145,5]
[425087115,1781477441000,-322.34907094,0.0001485,2]
[425087085,1781477441000,-3470.08712194,0.00014473,2]
[425087117,1781477441000,-199.3296886,0.0001485,2]
[425087090,1781477441000,-181.023861,0.00014522,2]
[425087094,1781477441000,-151.0,0.0001463,2]
[425087088,1781477441000,-7800.0,0.000145,5]
[425087095,1781477441000,-725.94510985,0.00014685,2]
[425087092,1781477441000,-1500.0,0.000146,5]
[425087091,1781477441000,-1019.12011878,0.00014528,2]
[425087108,1781477441000,-24799.20287708,0.000148,2]
[425087100,1781477441000,-1500.0,0.000147,5]
[425087101,1781477441000,-300.0,0.000147,5]
[425087097,1781477441000,-3379.6641169,0.00014685,2]
[425087099,1781477441000,-6840.6426,0.00014685,2]
[425087098,1781477441000,-5055.77539444,0.00014685,2]
[425087106,1781477441000,-423.51486491,0.000148,2]
[425087113,1781477441000,-503.23,0.00014849,2]
[425087116,1781477441000,-423.51486489,0.0001485,2]
[425087102,1781477441000,-218.0,0.00014702,2]
[425087112,1781477441000,-322.34907094,0.00014833,2]
[425087118,1781477441000,-825.37424,0.0001485,2]
[425087114,1781477441000,-44799.33023697,0.0001485,2]
[425087110,1781477441000,-300.0,0.000148,5]
[425087109,1781477441000,-1500.0,0.000148,5]
[425087107,1781477441000,-199.3296886,0.000148,2]
[425087105,1781477441000,-322.34907099,0.000148,2]
[425087104,1781477441000,-10000.0,0.000148,2]
[425087103,1781477441000,-170.63172329,0.00014785,2]
[425087111,1781477441000,-322.34907094,0.00014817,2]
[425087189,1781477442000,-500.0,0.00014899,2]
[425087187,1781477442000,-500.0,0.00014899,2]
[425087188,1781477442000,-500.0,0.00014899,2]
[425087190,1781477442000,-500.0,0.00014899,2]
[425087171,1781477442000,-572.2,0.00014899,2]
[425087184,1781477442000,-500.0,0.00014899,2]
[425087183,1781477442000,-500.0,0.00014899,2]
[425087182,1781477442000,-500.0,0.00014899,2]
[425087180,1781477442000,-500.0,0.00014899,2]
[425087186,1781477442000,-500.0,0.00014899,2]
[425087185,1781477442000,-500.0,0.00014899,2]
[425087181,1781477442000,-500.0,0.00014899,2]
[425087201,1781477442000,-500.0,0.00014899,2]
[425087203,1781477442000,-500.0,0.00014899,2]
[425087193,1781477442000,-500.0,0.00014899,2]
[425087192,1781477442000,-500.0,0.00014899,2]
[425087194,1781477442000,-500.0,0.00014899,2]
[425087205,1781477442000,-500.0,0.00014899,2]
[425087195,1781477442000,-500.0,0.00014899,2]
[425087196,1781477442000,-500.0,0.00014899,2]
[425087197,1781477442000,-500.0,0.00014899,2]
[425087199,1781477442000,-500.0,0.00014899,2]
[425087200,1781477442000,-500.0,0.00014899,2]
[425087198,1781477442000,-500.0,0.00014899,2]
[425087173,1781477442000,-534.1,0.00014899,2]
[425087202,1781477442000,-500.0,0.00014899,2]
[425087191,1781477442000,-500.0,0.00014899,2]
[425087172,1781477442000,-1039.55630744,0.00014899,5]
[425087162,1781477442000,-500.0,0.00014899,2]
[425087169,1781477442000,-500.0,0.00014899,2]
[425087146,1781477442000,-570.32,0.00014899,2]
[425087156,1781477442000,-570.32,0.00014899,2]
[425087147,1781477442000,-570.32,0.00014899,2]
[425087149,1781477442000,-570.32,0.00014899,2]
[425087150,1781477442000,-570.32,0.00014899,2]
[425087155,1781477442000,-570.32,0.00014899,2]
[425087154,1781477442000,-570.32,0.00014899,2]
[425087153,1781477442000,-570.32,0.00014899,2]
[425087151,1781477442000,-570.32,0.00014899,2]
[425087152,1781477442000,-570.32,0.00014899,2]
[425087157,1781477442000,-570.32,0.00014899,2]
[425087160,1781477442000,-500.0,0.00014899,2]
[425087158,1781477442000,-570.32,0.00014899,2]
[425087159,1781477442000,-500.0,0.00014899,2]
[425087163,1781477442000,-500.0,0.00014899,2]
[425087210,1781477442000,-500.0,0.00014899,2]
[425087166,1781477442000,-500.0,0.00014899,2]
[425087165,1781477442000,-500.0,0.00014899,2]
[425087167,1781477442000,-500.0,0.00014899,2]
[425087164,1781477442000,-500.0,0.00014899,2]
[425087174,1781477442000,-1049.9466096,0.00014899,5]
[425087178,1781477442000,-500.0,0.00014899,2]
[425087176,1781477442000,-250.0,0.00014899,2]
[425087168,1781477442000,-500.0,0.00014899,2]
[425087175,1781477442000,-500.0,0.00014899,2]
[425087177,1781477442000,-500.0,0.00014899,2]
[425087179,1781477442000,-500.0,0.00014899,2]
[425087170,1781477442000,-500.0,0.00014899,2]
[425087211,1781477442000,-500.0,0.00014899,2]
[425087148,1781477442000,-570.32,0.00014899,2]
[425087209,1781477442000,-500.0,0.00014899,2]
[425087243,1781477442000,-500.0,0.00014899,2]
[425087245,1781477442000,-500.0,0.00014899,2]
[425087244,1781477442000,-500.0,0.00014899,2]
[425087255,1781477442000,-4951.924,0.000149,2]
[425087250,1781477442000,-500.0,0.00014899,2]
[425087253,1781477442000,-2000.0,0.000149,2]
[425087251,1781477442000,-500.0,0.00014899,2]
[425087249,1781477442000,-500.0,0.00014899,2]
[425087246,1781477442000,-500.0,0.00014899,2]
[425087252,1781477442000,-500.0,0.00014899,2]
[425087247,1781477442000,-500.0,0.00014899,2]
[425087254,1781477442000,-848.0,0.000149,5]
[425087248,1781477442000,-500.0,0.00014899,2]
[425087268,1781477442000,-503.23,0.00014944,2]
[425087262,1781477442000,-300.0,0.000149,5]
[425087261,1781477442000,-1500.0,0.000149,5]
[425087260,1781477442000,-423.51486489,0.000149,2]
[425087259,1781477442000,-674.0,0.000149,5]
[425087266,1781477442000,-534.1,0.00014902,2]
[425087256,1781477442000,-1032.9,0.000149,2]
[425087257,1781477442000,-2991.57404873,0.000149,2]
[425087264,1781477442000,-199.3296886,0.000149,2]
[425087258,1781477442000,-322.34907094,0.000149,2]
[425087267,1781477442000,-500.0,0.00014902,2]
[425087265,1781477442000,-1019.12011878,0.000149,2]
[425087263,1781477442000,-1557.58719161,0.000149,2]
[425087215,1781477442000,-500.0,0.00014899,2]
[425087240,1781477442000,-500.0,0.00014899,2]
[425087241,1781477442000,-500.0,0.00014899,2]
[425087161,1781477442000,-500.0,0.00014899,2]
[425087242,1781477442000,-500.0,0.00014899,2]
[425087213,1781477442000,-500.0,0.00014899,2]
[425087239,1781477442000,-500.0,0.00014899,2]
[425087208,1781477442000,-500.0,0.00014899,2]
[425087207,1781477442000,-500.0,0.00014899,2]
[425087212,1781477442000,-500.0,0.00014899,2]
[425087206,1781477442000,-500.0,0.00014899,2]
[425087217,1781477442000,-500.0,0.00014899,2]
[425087216,1781477442000,-500.0,0.00014899,2]
[425087214,1781477442000,-500.0,0.00014899,2]
[425087219,1781477442000,-500.0,0.00014899,2]
[425087230,1781477442000,-500.0,0.00014899,2]
[425087231,1781477442000,-500.0,0.00014899,2]
[425087225,1781477442000,-500.0,0.00014899,2]
[425087223,1781477442000,-500.0,0.00014899,2]
[425087218,1781477442000,-500.0,0.00014899,2]
[425087232,1781477442000,-500.0,0.00014899,2]
[425087238,1781477442000,-500.0,0.00014899,2]
[425087221,1781477442000,-500.0,0.00014899,2]
[425087235,1781477442000,-500.0,0.00014899,2]
[425087237,1781477442000,-500.0,0.00014899,2]
[425087236,1781477442000,-500.0,0.00014899,2]
[425087234,1781477442000,-500.0,0.00014899,2]
[425087233,1781477442000,-500.0,0.00014899,2]
[425087224,1781477442000,-500.0,0.00014899,2]
[425087227,1781477442000,-500.0,0.00014899,2]
[425087222,1781477442000,-500.0,0.00014899,2]
[425087228,1781477442000,-500.0,0.00014899,2]
[425087226,1781477442000,-500.0,0.00014899,2]
[425087229,1781477442000,-500.0,0.00014899,2]
[425087333,1781477443000,-500.0,0.00014988,2]
[425087344,1781477443000,-500.0,0.00014988,2]
[425087332,1781477443000,-500.0,0.00014988,2]
[425087336,1781477443000,-500.0,0.00014988,2]
[425087322,1781477443000,-500.0,0.00014988,2]
[425087325,1781477443000,-500.0,0.00014988,2]
[425087324,1781477443000,-500.0,0.00014988,2]
[425087327,1781477443000,-500.0,0.00014988,2]
[425087340,1781477443000,-500.0,0.00014988,2]
[425087357,1781477443000,-500.0,0.00014988,2]
[425087359,1781477443000,-500.0,0.00014988,2]
[425087342,1781477443000,-500.0,0.00014988,2]
[425087338,1781477443000,-500.0,0.00014988,2]
[425087349,1781477443000,-500.0,0.00014988,2]
[425087355,1781477443000,-500.0,0.00014988,2]
[425087353,1781477443000,-500.0,0.00014988,2]
[425087351,1781477443000,-500.0,0.00014988,2]
[425087361,1781477443000,-500.0,0.00014988,2]
[425087372,1781477443000,-500.0,0.00014988,2]
[425087368,1781477443000,-500.0,0.00014988,2]
[425087330,1781477443000,-500.0,0.00014988,2]
[425087346,1781477443000,-500.0,0.00014988,2]
[425087307,1781477443000,-277940.037783,0.00014988,2]
[425087280,1781477443000,-300.0,0.00014987,2]
[425087305,1781477443000,-5628.4229332,0.00014988,2]
[425087269,1781477443000,-534.1,0.00014944,2]
[425087278,1781477443000,-500.0,0.00014985,2]
[425087279,1781477443000,-300.0,0.00014987,2]
[425087275,1781477443000,-350.0,0.00014967,2]
[425087270,1781477443000,-500.0,0.00014944,2]
[425087271,1781477443000,-503.23,0.00014954,2]
[425087274,1781477443000,-459.31188642,0.0001496,2]
[425087272,1781477443000,-534.1,0.00014954,2]
[425087277,1781477443000,-534.1,0.00014985,2]
[425087273,1781477443000,-500.0,0.00014954,2]
[425087276,1781477443000,-163.06545356,0.00014985,2]
[425087363,1781477443000,-500.0,0.00014988,2]
[425087284,1781477443000,-570.32,0.00014987,2]
[425087286,1781477443000,-570.32,0.00014987,2]
[425087282,1781477443000,-300.0,0.00014987,2]
[425087289,1781477443000,-570.32,0.00014987,2]
[425087300,1781477443000,-2488.9605057,0.00014988,2]
[425087294,1781477443000,-503.23,0.00014987,2]
[425087298,1781477443000,-500.0,0.00014987,2]
[425087293,1781477443000,-570.36,0.00014987,2]
[425087296,1781477443000,-534.1,0.00014987,2]
[425087290,1781477443000,-570.32,0.00014987,2]
[425087302,1781477443000,-1321163.5764813,0.00014988,2]
[425087309,1781477443000,-151.0,0.00014988,2]
[425087364,1781477443000,-500.0,0.00014988,2]
[425087360,1781477443000,-500.0,0.00014988,2]
[425087373,1781477443000,-500.0,0.00014988,2]
[425087396,1781477443000,-500.0,0.00014988,2]
[425087400,1781477443000,-500.0,0.00014988,2]
[425087399,1781477443000,-500.0,0.00014988,2]
[425087401,1781477443000,-500.0,0.00014988,2]
[425087403,1781477443000,-500.0,0.00014988,2]
[425087402,1781477443000,-500.0,0.00014988,2]
[425087406,1781477443000,-500.0,0.00014988,2]
[425087404,1781477443000,-500.0,0.00014988,2]
[425087405,1781477443000,-500.0,0.00014988,2]
[425087409,1781477443000,-151.0,0.00014988,2]
[425087398,1781477443000,-500.0,0.00014988,2]
[425087408,1781477443000,-1955.3199926,0.00014988,2]
[425087410,1781477443000,-151.0,0.00014988,2]
[425087412,1781477443000,-151.0,0.00014988,2]
[425087413,1781477443000,-151.0,0.00014988,2]
[425087414,1781477443000,-151.0,0.00014988,2]
[425087416,1781477443000,-1618.6668969,0.00014988,2]
[425087362,1781477443000,-500.0,0.00014988,2]
[425087417,1781477443000,-151.0,0.00014988,2]
[425087415,1781477443000,-151.0,0.00014988,2]
[425087418,1781477443000,-5327.1728997,0.00014988,2]
[425087419,1781477443000,-151.0,0.00014988,2]
[425087407,1781477443000,-151.0,0.00014988,2]
[425087395,1781477443000,-500.0,0.00014988,2]
[425087411,1781477443000,-13441.3031104,0.00014988,2]
[425087394,1781477443000,-500.0,0.00014988,2]
[425087397,1781477443000,-500.0,0.00014988,2]
[425087366,1781477443000,-500.0,0.00014988,2]
[425087367,1781477443000,-500.0,0.00014988,2]
[425087370,1781477443000,-500.0,0.00014988,2]
[425087374,1781477443000,-221.88136,0.00014988,2]
[425087375,1781477443000,-500.0,0.00014988,2]
[425087376,1781477443000,-500.0,0.00014988,2]
[425087379,1781477443000,-221.88136,0.00014988,2]
[425087380,1781477443000,-500.0,0.00014988,2]
[425087386,1781477443000,-500.0,0.00014988,2]
[425087387,1781477443000,-500.0,0.00014988,2]
[425087382,1781477443000,-500.0,0.00014988,2]
[425087378,1781477443000,-500.0,0.00014988,2]
[425087377,1781477443000,-500.0,0.00014988,2]
[425087390,1781477443000,-500.0,0.00014988,2]
[425087388,1781477443000,-500.0,0.00014988,2]
[425087391,1781477443000,-221.88136,0.00014988,2]
[425087392,1781477443000,-500.0,0.00014988,2]
[425087385,1781477443000,-221.88136,0.00014988,2]
[425087383,1781477443000,-500.0,0.00014988,2]
[425087381,1781477443000,-500.0,0.00014988,2]
[425087384,1781477443000,-500.0,0.00014988,2]
[425087389,1781477443000,-500.0,0.00014988,2]
[425087393,1781477443000,-500.0,0.00014988,2]
[425087427,1781477444000,-503.23,0.00014988,2]
[425087435,1781477444000,-960.992805,0.00014988,2]
[425087441,1781477444000,-151.0,0.00014997,2]
[425087438,1781477444000,-181.0,0.00014988,2]
[425087436,1781477444000,-181.0,0.00014988,2]
[425087432,1781477444000,-960.992805,0.00014988,2]
[425087430,1781477444000,-534.1,0.00014988,2]
[425087421,1781477444000,-151.0,0.00014988,2]
[425087426,1781477444000,-151.0,0.00014988,2]
[425087429,1781477444000,-503.3038769,0.00014988,2]
[425087431,1781477444000,-500.0,0.00014988,2]
[425087433,1781477444000,-960.992805,0.00014988,2]
[425087423,1781477444000,-151.0,0.00014988,2]
[425087425,1781477444000,-503.23,0.00014988,2]
[425087424,1781477444000,-503.23,0.00014988,2]
[425087422,1781477444000,-158.61093,0.00014988,2]
[425087428,1781477444000,-503.23,0.00014988,2]
[425087439,1781477444000,-534.1,0.00014989,2]
[425087443,1781477444000,-534.1,0.00014999,2]
[425087437,1781477444000,-181.0,0.00014988,2]
[425087420,1781477444000,-151.0,0.00014988,2]
[425087458,1781477444000,-5931007.44004338,0.00015,2]
[425087456,1781477444000,-300.0,0.00014999,2]
[425087455,1781477444000,-300.0,0.00014999,2]
[425087457,1781477444000,-300.0,0.00014999,2]
[425087454,1781477444000,-3000.0,0.00014999,2]
[425087453,1781477444000,-250.0,0.00014999,2]
[425087452,1781477444000,-636.24,0.00014999,2]
[425087446,1781477444000,-534.1,0.00014999,2]
[425087448,1781477444000,-534.1,0.00014999,2]
[425087450,1781477444000,-500.0,0.00014999,2]
[425087449,1781477444000,-534.26255172,0.00014999,2]
[425087447,1781477444000,-534.1,0.00014999,2]
[425087445,1781477444000,-534.1,0.00014999,2]
[425087444,1781477444000,-534.1,0.00014999,2]
[425087440,1781477444000,-500.0,0.00014989,2]
[425087442,1781477444000,-1049.94660961,0.00014999,5]
[425087434,1781477444000,-960.992805,0.00014988,2]
[425087451,1781477444000,-500.0,0.00014999,2]
[425087459,1781477445000,-52308.07857085,0.00015,2]
[425087465,1781477446000,-846.38,0.000149,2]
[425087464,1781477446000,-1000.0,0.000149,2]
[425087579,1781477447000,-6381.08883264,0.00015,2]
[425087574,1781477447000,-666.86329003,0.000149,2]
[425087577,1781477447000,-151.11116736,0.000149,2]
[425087566,1781477447000,-797.476701,0.000149,2]
[425087563,1781477447000,-8.25596355,0.000149,2]
[425087585,1781477447000,-50.04752914,0.00015,2]
[425087688,1781477448000,-504.0,0.00015,2]
[425087685,1781477448000,-275.89021666,0.00015,2]
[425087692,1781477571000,-49008.74295004,0.00011465,2]
[425087693,1781477592000,-49008.74295004,0.00011465,2]
[425087696,1781477703000,-828.56815161,0.000107,3]
[425087697,1781477724000,-828.56815161,0.000107,3]
[425087698,1781477745000,-42.86369678,0.000107,3]
[425087699,1781477793000,-1416.87229178,0.000108,3]
[425087700,1781477813000,-150.0,0.00010068,2]
[425087701,1781477861000,-150.0,0.00010379,2]
[425087705,1781477914000,-200.0,0.00010455,2]
[425087706,1781477968000,-206.74,0.00010353,2]
[425087707,1781478022000,-828.56815161,0.00010249,2]
[425087708,1781478042000,-828.56815161,0.00010249,2]
[425087710,1781478184000,-150.0,9.942e-05,2]
[425087711,1781478237000,-197.82737597,0.000103,2]
[425087712,1781478291000,-168.47,8.346e-05,2]
[425087714,1781478345000,-457.34,9.688e-05,2]
[425087715,1781478363000,-457.34,9.688e-05,2]
[425087719,1781478367000,200.77,0.00030136,120]
[425087720,1781478383000,-502.192291,9.688e-05,2]
[425087721,1781478432000,-168.47,9.737e-05,2]
[425087722,1781478485000,-150.0,9.445e-05,2]
[425087723,1781478539000,-335.27,9.984e-05,2]
[425087725,1781478546000,-81.88443153,0.00010106,2]
[425087724,1781478546000,-680.04,0.00010096,2]
[425087726,1781478593000,-213.48117097,0.00010106,2]
[425087765,1781478631000,-20.4821685,0.00010197,2]
[425087767,1781478631000,-500.0,0.00010197,2]
[425087762,1781478631000,-479.5178315,0.00010197,2]
[425087772,1781478631000,-500.0,0.00010197,2]
[425087771,1781478631000,-500.0,0.00010197,2]
[425087754,1781478631000,-1904.18,0.00010195,2]
[425087751,1781478631000,-451.02,0.0001019,2]
[425087758,1781478631000,-500.0,0.00010197,2]
[425087755,1781478631000,-150.0,0.00010196,2]
[425087768,1781478631000,-500.0,0.00010197,2]
[425087760,1781478631000,-633.04388642,0.00010197,2]
[425087770,1781478631000,-500.0,0.00010197,2]
[425087769,1781478631000,-500.0,0.00010197,2]
[425087777,1781478631000,-198.10855436,0.00010204,2]
[425087781,1781478631000,-500.0,0.00010204,2]
[425087783,1781478631000,-35177.93013143,0.00010206,2]
[425087774,1781478631000,-500.0,0.00010197,2]
[425087775,1781478631000,-1852.42,0.00010199,2]
[425087773,1781478631000,-500.0,0.00010197,2]
[425087782,1781478631000,-175.93162172,0.00010204,2]
[425087776,1781478631000,-172.7418653,0.00010204,2]
[425087779,1781478631000,-500.0,0.00010204,2]
[425087766,1781478631000,-500.0,0.00010197,2]
[425087780,1781478631000,-200.36375143,0.00010204,2]
[425087778,1781478631000,-500.0,0.00010204,2]
[425087784,1781478631000,-74996.68233404,0.00010206,2]
[425087798,1781478637000,-367.47906803,0.00010206,2]
[425087838,1781478638000,-5300.0,0.000108,3]
[425087835,1781478638000,-850.01,0.00010735,2]
[425087858,1781478638000,-3177.61044648,0.0001128,2]
[425087819,1781478638000,-1219.4,0.00010475,2]
[425087825,1781478638000,-999.99,0.00010475,2]
[425087839,1781478638000,-7100.0,0.000109,3]
[425087850,1781478638000,-592.98910977,0.00011117,2]
[425087856,1781478638000,-166.66,0.00011178,2]
[425087847,1781478638000,-12434.52399035,0.00011099,2]
[425087843,1781478638000,-166.66,0.00010959,2]
[425087845,1781478638000,-166.66,0.00011068,2]
[425087852,1781478638000,-239.24,0.00011118,2]
[425087821,1781478638000,-299.99,0.00010475,2]
[425087841,1781478638000,-150.45511458,0.000109,2]
[425087823,1781478638000,-12339.87,0.00010475,2]
[425087817,1781478638000,-974.289295,0.00010455,2]
[425087828,1781478638000,-150.99,0.00010475,2]
[425087830,1781478638000,-164.67,0.0001062,2]
[425087827,1781478638000,-2097.95,0.00010475,2]
[425087833,1781478638000,-3500.0,0.000107,3]
[425087831,1781478638000,-250.0,0.00010657,2]
[425087815,1781478638000,-959.27,0.00010432,2]
[425087811,1781478638000,-163.68,0.00010301,2]
[425087812,1781478638000,-467.21,0.00010406,2]
[425087804,1781478638000,-1143.6,0.0001023,2]
[425087808,1781478638000,-192.94,0.00010249,2]
[425087806,1781478638000,-179.44,0.00010237,2]
[425087800,1781478638000,-45344.4884665,0.00010206,2]
[425087802,1781478638000,-232.30580687,0.00010206,2]
[425087829,1781478638000,-1700.0,0.000106,3]
[425087854,1781478638000,-168.47,0.00011128,2]
[425087862,1781478638000,-166.66,0.00011288,2]
[425087925,1781478638000,-465.71051319,0.00011829,2]
[425087928,1781478638000,-172.03932721,0.00011841,2]
[425087923,1781478638000,-168.27,0.00011815,2]
[425087914,1781478638000,-1904.18,0.0001147,2]
[425087921,1781478638000,-24799.20287708,0.00011729,2]
[425087916,1781478638000,-166.66,0.00011507,2]
[425087918,1781478638000,-500.0,0.00011555,2]
[425087912,1781478638000,-500.0,0.00011464,2]
[425087909,1781478638000,-500.0,0.00011464,2]
[425087900,1781478638000,-500.0,0.00011464,2]
[425087905,1781478638000,-500.0,0.00011464,2]
[425087907,1781478638000,-500.0,0.00011464,2]
[425087899,1781478638000,-500.0,0.00011464,2]
[425087896,1781478638000,-500.0,0.00011464,2]
[425087889,1781478638000,-1047.97376743,0.00011464,3]
[425087903,1781478638000,-500.0,0.00011464,2]
[425087893,1781478638000,-500.0,0.00011464,2]
[425087872,1781478638000,-1531.01711368,0.00011407,2]
[425087895,1781478638000,-500.0,0.00011464,2]
[425087877,1781478638000,-500.0,0.00011424,2]
[425087875,1781478638000,-172.03932721,0.00011408,2]
[425087870,1781478638000,-1557.58719161,0.00011407,2]
[425087879,1781478638000,-23811.0,0.00011425,2]
[425087868,1781478638000,-24799.20287709,0.00011407,2]
[425087860,1781478638000,-500.0,0.00011281,2]
[425087866,1781478638000,-166.66,0.00011397,2]
[425087883,1781478638000,-3036.32623174,0.00011431,2]
[425087881,1781478638000,-752.14783226,0.00011431,2]
[425087885,1781478638000,-1049.94660961,0.00011464,3]
[425087887,1781478638000,-1046.48317555,0.00011464,3]
[425087891,1781478638000,-3000.0,0.00011464,2]
[425087864,1781478638000,-680.04,0.00011358,2]
[425088025,1781478639000,-500.0,0.00013151,2]
[425088021,1781478639000,-250.21032,0.00013137,2]
[425088035,1781478639000,-500.0,0.00013151,2]
[425088013,1781478639000,-231.099694,0.00013072,2]
[425088011,1781478639000,-404468.0225686,0.00013071,2]
[425088002,1781478639000,-305.02857224,0.00013023,2]
[425088004,1781478639000,-151.42762908,0.00013023,2]
[425088007,1781478639000,-250.0,0.0001307,2]
[425088000,1781478639000,-24799.20287708,0.00013016,2]
[425087994,1781478639000,-1265.82877241,0.00013,2]
[425088019,1781478639000,-1971.58,0.00013087,2]
[425088009,1781478639000,-500.0,0.0001307,2]
[425087990,1781478639000,-500.0,0.00012976,2]
[425088042,1781478639000,-400.37540708,0.00013151,2]
[425088023,1781478639000,-500.0,0.0001315,2]
[425088015,1781478639000,-194.102552,0.00013072,2]
[425088029,1781478639000,-500.0,0.00013151,2]
[425088031,1781478639000,-500.0,0.00013151,2]
[425088017,1781478639000,-179.27734,0.00013072,2]
[425088033,1781478639000,-500.0,0.00013151,2]
[425088038,1781478639000,-500.0,0.00013151,2]
[425088040,1781478639000,-500.0,0.00013151,2]
[425088050,1781478639000,-500.0,0.00013151,2]
[425088056,1781478639000,-500.0,0.00013151,2]
[425088054,1781478639000,-500.0,0.00013151,2]
[425088052,1781478639000,-500.0,0.00013151,2]
[425087996,1781478639000,-15810.37303564,0.00013,5]
[425088027,1781478639000,-500.0,0.00013151,2]
[425087998,1781478639000,-2232.36998049,0.00013,2]
[425087949,1781478639000,-1218.3903579,0.00012372,2]
[425087986,1781478639000,-3036.3262317,0.00012918,2]
[425087934,1781478639000,-500.0,0.00011999,2]
[425087930,1781478639000,-33287.1579,0.000119,2]
[425087932,1781478639000,-3036.3262317,0.00011927,2]
[425087936,1781478639000,-500.0,0.00011999,2]
[425087940,1781478639000,-752.14783221,0.00012009,2]
[425087942,1781478639000,-24799.20287708,0.00012051,2]
[425087938,1781478639000,-398978.97413607,0.00012,2]
[425087944,1781478639000,-159.3,0.00012329,2]
[425087947,1781478639000,-152.51428612,0.00012372,2]
[425087951,1781478639000,-24799.20287708,0.00012373,2]
[425087957,1781478639000,-168.47,0.00012519,2]
[425087953,1781478639000,-3036.3262317,0.00012422,2]
[425087959,1781478639000,-752.14783221,0.00012587,2]
[425087961,1781478639000,-172.03932721,0.0001261,2]
[425087955,1781478639000,-250.0,0.00012451,2]
[425087963,1781478639000,-680.04,0.00012619,2]
[425087965,1781478639000,-13005.32762472,0.00012673,2]
[425087968,1781478639000,-24799.20287708,0.00012695,2]
[425087972,1781478639000,-3254.47089819,0.00012822,2]
[425087970,1781478639000,-1904.18,0.00012744,2]
[425087974,1781478639000,-8588.60019108,0.00012822,2]
[425087984,1781478639000,-277940.037783,0.00012903,2]
[425087978,1781478639000,-8900.0,0.000129,4]
[425087976,1781478639000,-31678.3435936,0.00012853,2]
[425087980,1781478639000,-500.0,0.00012902,2]
[425087982,1781478639000,-1536.0935877,0.00012903,2]
[425087988,1781478639000,-500.0,0.00012975,2]
[425087992,1781478639000,-283261.3885902,0.00012977,2]
[425088048,1781478639000,-500.0,0.00013151,2]
[425088122,1781478639000,-449.0,0.00013151,2]
[425088058,1781478639000,-500.0,0.00013151,2]
[425088126,1781478639000,-449.0,0.00013151,2]
[425088112,1781478639000,-200.0,0.00013151,2]
[425088116,1781478639000,-449.0,0.00013151,2]
[425088124,1781478639000,-449.0,0.00013151,2]
[425088114,1781478639000,-449.0,0.00013151,2]
[425088130,1781478639000,-500.0,0.00013151,2]
[425088132,1781478639000,-150.0,0.00013151,2]
[425088134,1781478639000,-500.0,0.00013151,2]
[425088146,1781478639000,-150.0,0.00013151,2]